[Event "RUS-chT Higher League 2021"]
[Site "Sochi"]
[Date "2021.05.08"]
[Round "7.10"]
[White "Pridorozhni, Aleksei"]
[Black "Grebnev, Aleksey"]
[Result "1/2-1/2"]
[ECO "C15"]
[WhiteElo "2555"]
[BlackElo "2283"]
[Annotator "ChessBase"]
[PlyCount "119"]
[EventDate "2021.05.01"]
[EventType "team-tourn"]
[EventCountry "RUS"]
[SourceTitle "playchess.com"]
[Source "ChessBase"]
[SourceQuality "1"]
[TimeControl "40/5400+30:1800+30"]

1. e4 {[%emt 0:00:00]} e6 {[%emt 0:00:00]} 2. d4 {[%emt 0:00:00]} d5 {[%emt 0:00:00]} 3. Nc3 {[%emt 0:00:00]} Bb4 {[%emt 0:00:00]} 4. exd5 {[%emt 0:00:35]} exd5 {[%emt 0:00:01]} 5. Bd3 {[%emt 0:00:07]} Nc6 {[%emt 0:00:08]} 6. a3 {[%emt 0:00:10]} Bxc3+ {[%emt 0:00:09]} 7. bxc3 {[%emt 0:00:06]} Nf6 {[%emt 0:00:12]} 8. Ne2 {[%emt 0:01:01]} O-O {[%emt 0:00:22]} 9. O-O {[%emt 0:00:13]} Na5 {[%emt 0:01:19]} 10. Ng3 {[%emt 0:02:17]} Re8 {[%emt 0:06:42]} 11. Qf3 {[%emt 0:01:36]} Bg4 {[%emt 0:06:50]} 12. Qf4 {[%emt 0:00:20]} Qd6 {[%emt 0:00:15]} 13. h3 {[%emt 0:00:26]} Bd7 {[%emt 0:01:42]} 14. Qh4 {[%emt 0:03:33]} Qc6 {[%emt 0:07:54]} 15. Bf4 {[%emt 0:04:30]} Nc4 {[%emt 0:03:39]} 16. Rfe1 {[%emt 0:02:46]} Ne4 {[%emt 0:06:27]} 17. f3 {[%emt 0:06:50]} Qf6 {[%emt 0:00:17]} 18. Qxf6 {[%emt 0:00:07]} Nxf6 {[%emt 0:00:05]} 19. Be5 {[%emt 0:00:06]} Nd6 {[%emt 0:05:58]} 20. Bxf6 {[%emt 0:01:31]} gxf6 {[%emt 0:00:08]} 21. Nh5 {[%emt 0:00:05]} Rxe1+ {[%emt 0:00:08]} 22. Rxe1 {[%emt 0:00:04]} Ne8 {[%emt 0:00:07]} 23. c4 {[%emt 0:06:05]} dxc4 {[%emt 0:02:05]} 24. Bxc4 {[%emt 0:00:06]} Kf8 {[%emt 0:00:07]} 25. g4 {[%emt 0:00:56]} Rd8 {[%emt 0:02:02]} 26. Kf2 {[%emt 0:02:57]} Ba4 {[%emt 0:01:19]} 27. c3 {[%emt 0:00:39]} c5 {[%emt 0:01:12]} 28. d5 {[%emt 0:06:29]} a6 29. Ba2 {[%emt 0:04:02]} b5 {[%emt 0:05:43]} 30. c4 {[%emt 0:00:17]} bxc4 {[%emt 0:02:39]} 31. Bxc4 {[%emt 0:00:36]} Bb5 {[%emt 0:00:05]} 32. Bb3 {[%emt 0:00:58]} c4 {[%emt 0:03:17]} 33. Bc2 {[%emt 0:00:10]} Rxd5 {[%emt 0:00:40]} 34. Bxh7 {[%emt 0:00:12]} Rd2+ {[%emt 0:04:51]} 35. Kg3 {[%emt 0:01:38]} Rb2 {[%emt 0:01:59]} 36. Rc1 {[%emt 0:01:58]} Rb3 {[%emt 0:00:43]} 37. a4 {[%emt 0:00:39]} Bc6 {[%emt 0:00:07]} 38. Rxc4 {[%emt 0:00:15]} Rxf3+ {[%emt 0:00:27]} 39. Kh4 {[%emt 0:00:23]} Bd7 {[%emt 0:00:15]} 40. Rd4 {[%emt 0:00:00]} Bc6 {[%emt 0:00:00]} 41. Be4 {[%emt 0:06:43]} Bxe4 {[%emt 0:00:49]} 42. Rxe4 {[%emt 0:00:05]} a5 {[%emt 0:05:58]} 43. Rf4 {[%emt 0:03:04]} Rxf4 {[%emt 0:02:22]} 44. Nxf4 {[%emt 0:00:12]} Nd6 {[%emt 0:00:03]} 45. Nd5 {[%emt 0:01:49]} Ne4 {[%emt 0:00:17]} 46. Nb6 {[%emt 0:00:09]} Kg7 {[%emt 0:00:25]} 47. Nc4 {[%emt 0:00:07]} Nc5 {[%emt 0:00:08]} 48. Nxa5 {[%emt 0:00:03]} Nxa4 {[%emt 0:00:04]} 49. Nc4 {[%emt 0:00:16]} Nc5 {[%emt 0:00:09]} 50. Kg3 {[%emt 0:00:12]} Kg6 {[%emt 0:00:13]} 51. Nd6 {[%emt 0:00:19]} Ne6 {[%emt 0:02:03]} 52. h4 {[%emt 0:00:19]} Ng7 {[%emt 0:00:37]} 53. Kf4 {[%emt 0:00:54]} Ne6+ {[%emt 0:00:14]} 54. Kf3 {[%emt 0:00:16]} Ng7 {[%emt 0:02:00]} 55. Ke4 {[%emt 0:00:44]} f5+ {[%emt 0:02:53]} 56. gxf5+ {[%emt 0:00:06]} Kh5 {[%emt 0:00:10]} 57. f6 {[%emt 0:00:05]} Ne6 {[%emt 0:00:09]} 58. Nxf7 {[%emt 0:01:28]} Kg6 {[%emt 0:00:15]} 59. Ng5 {[%emt 0:00:36]} Kxf6 {[%emt 0:00:07]} 60. Nxe6 1/2-1/2

[Event "RUS-chT Higher League 2021"]
[Site "Sochi"]
[Date "2021.05.08"]
[Round "7.11"]
[White "Sharikov, Alexander"]
[Black "Ulybin, Mikhail"]
[Result "0-1"]
[ECO "D10"]
[WhiteElo "2132"]
[BlackElo "2462"]
[Annotator "ChessBase"]
[PlyCount "71"]
[EventDate "2021.05.01"]
[EventType "team-tourn"]
[EventCountry "RUS"]
[SourceTitle "playchess.com"]
[Source "ChessBase"]
[SourceQuality "1"]
[TimeControl "40/5400+30:1800+30"]

1. d4 {[%emt 0:00:00]} d5 {[%emt 0:01:04]} 2. c4 {[%emt 0:00:00]} c6 {[%emt 0:02:22]} 3. cxd5 {[%emt 0:00:02]} cxd5 {[%emt 0:00:41]} 4. Bf4 {[%emt 0:00:09]} Nc6 {[%emt 0:11:49]} 5. e3 {[%emt 0:00:16]} e6 {[%emt 0:07:56]} 6. Nc3 {[%emt 0:00:21]} Bd6 {[%emt 0:02:52]} 7. Bxd6 {[%emt 0:00:14]} Qxd6 {[%emt 0:00:17]} 8. Bd3 {[%emt 0:00:44]} Nf6 {[%emt 0:05:59]} 9. f4 {[%emt 0:02:09]} a6 {[%emt 0:23:44]} 10. Rc1 {[%emt 0:07:16]} b5 {[%emt 0:07:53]} 11. Qe2 {[%emt 0:03:22]} Bb7 {[%emt 0:05:13]} 12. Nf3 {[%emt 0:01:10]} O-O {[%emt 0:02:12]} 13. O-O {[%emt 0:00:19]} Rac8 {[%emt 0:04:15]} 14. Ne5 {[%emt 0:02:15]} Na5 {[%emt 0:07:21]} 15. Qf3 {[%emt 0:28:34]} Rc7 {[%emt 0:03:32]} 16. a3 {[%emt 0:07:41]} Rfc8 {[%emt 0:08:13]} 17. Na2 {[%emt 0:09:42]} Ne4 {[%emt 0:02:06]} 18. Rcd1 {[%emt 0:01:19]} f6 {[%emt 0:00:31]} 19. Ng4 {[%emt 0:01:08]} Nc4 {[%emt 0:00:14]} 20. Qe2 {[%emt 0:00:10]} a5 {[%emt 0:00:55]} 21. Nf2 {[%emt 0:03:53]} b4 {[%emt 0:00:41]} 22. a4 {[%emt 0:00:52]} b3 {[%emt 0:00:27]} 23. Nxe4 {[%emt 0:00:45]} dxe4 {[%emt 0:00:07]} 24. Bxc4 {[%emt 0:00:01]} Rxc4 {[%emt 0:00:45]} 25. Nc3 {[%emt 0:00:03]} Rxc3 {[%emt 0:00:42]} 26. bxc3 {[%emt 0:00:03]} Ba6 {[%emt 0:00:17]} 27. Qb2 {[%emt 0:00:36]} Bxf1 {[%emt 0:00:35]} 28. Rxf1 {[%emt 0:00:04]} Rb8 {[%emt 0:00:35]} 29. c4 {[%emt 0:06:29]} Qb4 {[%emt 0:00:26]} 30. c5 {[%emt 0:00:06]} Qxa4 {[%emt 0:00:20]} 31. f5 {[%emt 0:00:03]} Qa2 {[%emt 0:00:46]} 32. Rb1 {[%emt 0:08:53]} Qxb2 {[%emt 0:00:22]} 33. Rxb2 {[%emt 0:00:01]} a4 {[%emt 0:00:31]} 34. c6 {[%emt 0:00:01]} Kf7 {[%emt 0:00:38]} 35. Kf2 {[%emt 0:00:23]} Rc8 {[%emt 0:00:30]} 36. Ra2 {[%emt 0:00:06]} 0-1

[Event "RUS-chT Higher League 2021"]
[Site "Sochi"]
[Date "2021.05.08"]
[Round "7.12"]
[White "Pingin, Artem"]
[Black "Bobkov, Vadim"]
[Result "1/2-1/2"]
[ECO "B29"]
[WhiteElo "2347"]
[BlackElo "2265"]
[Annotator "NA"]
[PlyCount "57"]
[EventDate "2021.05.01"]
[EventType "team-tourn"]
[EventCountry "RUS"]
[SourceTitle "playchess.com"]
[Source "ChessBase"]
[SourceQuality "1"]
[TimeControl "40/5400+30:1800+30"]

1. e4 {[%emt 0:00:00]} c5 {[%emt 0:00:00]} 2. Nf3 {[%emt 0:00:00]} Nf6 {[%emt 0:00:00]} 3. e5 {[%emt 0:00:00]} Nd5 {[%emt 0:00:00]} 4. Nc3 {[%emt 0:00:00]} Nxc3 {[%emt 0:00:29]} 5. dxc3 {[%emt 0:00:18]} Nc6 {[%emt 0:00:16]} 6. Bf4 {[%emt 0:00:20]} e6 {[%emt 0:00:26]} 7. Qd2 {[%emt 0:02:57]} Qc7 {[%emt 0:00:36]} 8. O-O-O {[%emt 0:04:02]} h6 {[%emt 0:02:07]} 9. h4 {[%emt 0:02:26]} b6 {[%emt 0:00:23]} 10. Bh2 {[%emt 0:11:11]} Bb7 {[%emt 0:01:01]} 11. Qf4 {[%emt 0:00:08]} f5 {[%emt 0:15:59]} 12. g4 {[%emt 0:15:15]} fxg4 {[%emt 0:01:06]} 13. Qxg4 {[%emt 0:00:10]} O-O-O {[%emt 0:00:07]} 14. Bd3 {[%emt 0:00:44]} g5 {[%emt 0:07:20]} 15. Kb1 {[%emt 0:10:01]} Be7 {[%emt 0:02:14]} 16. h5 {[%emt 0:10:31]} Rdf8 {[%emt 0:10:12]} 17. Be4 {[%emt 0:00:53]} Na5 {[%emt 0:05:06]} 18. Nd2 {[%emt 0:12:41]} Rxf2 {[%emt 0:19:28]} 19. Bg3 {[%emt 0:00:23]} Rf7 {[%emt 0:01:39]} 20. Rhe1 {[%emt 0:02:32]} Bxe4 {[%emt 0:16:16]} 21. Nxe4 {[%emt 0:00:08]} Rf5 {[%emt 0:00:03]} 22. Nf6 {[%emt 0:07:46]} Bxf6 {[%emt 0:07:29]} 23. exf6 {[%emt 0:00:10]} Qc6 {[%emt 0:00:01]} 24. Be5 {[%emt 0:05:46]} Rf8 {[%emt 0:01:27]} 25. b3 {[%emt 0:03:46]} Qf3 {[%emt 0:00:32]} 26. Qa4 {[%emt 0:00:55]} Qc6 {[%emt 0:00:51]} 27. Qg4 {[%emt 0:00:29]} Qf3 {[%emt 0:00:05]} 28. Qa4 {[%emt 0:00:40]} Qc6 {[%emt 0:02:13]} 29. Qg4 {[%emt 0:00:05]} 1/2-1/2

[Event "RUS-chT Higher League 2021"]
[Site "Sochi"]
[Date "2021.05.09"]
[Round "8.2"]
[White "Shomoev, Anton"]
[Black "Pridorozhni, Aleksei"]
[Result "1-0"]
[ECO "C67"]
[WhiteElo "2563"]
[BlackElo "2555"]
[Annotator "ChessBase"]
[PlyCount "59"]
[EventDate "2021.05.01"]
[EventType "team-tourn"]
[EventCountry "RUS"]
[SourceTitle "playchess.com"]
[Source "ChessBase"]
[SourceQuality "1"]
[TimeControl "40/5400+30:1800+30"]

1. e4 {[%emt 0:00:00]} e5 {[%emt 0:00:00]} 2. Nf3 {[%emt 0:00:00]} Nc6 {[%emt 0:00:00]} 3. Bb5 {[%emt 0:00:00]} Nf6 {[%emt 0:00:01]} 4. O-O {[%emt 0:00:00]} Nxe4 {[%emt 0:00:06]} 5. d4 {[%emt 0:00:03]} Nd6 {[%emt 0:00:07]} 6. Bxc6 {[%emt 0:00:04]} dxc6 {[%emt 0:00:08]} 7. dxe5 {[%emt 0:00:06]} Nf5 {[%emt 0:00:06]} 8. Qxd8+ {[%emt 0:00:05]} Kxd8 {[%emt 0:00:06]} 9. h3 {[%emt 0:00:05]} Bd7 {[%emt 0:00:49]} 10. Rd1 {[%emt 0:00:07]} Kc8 {[%emt 0:00:16]} 11. g4 {[%emt 0:00:06]} Ne7 {[%emt 0:00:11]} 12. Ng5 {[%emt 0:00:03]} Be8 {[%emt 0:00:09]} 13. f4 {[%emt 0:00:02]} h5 {[%emt 0:00:19]} 14. Kf2 {[%emt 0:00:07]} b6 {[%emt 0:00:31]} 15. f5 {[%emt 0:08:04]} Kb7 {[%emt 0:01:49]} 16. c4 {[%emt 0:00:23]} c5 {[%emt 0:01:03]} 17. Nc3 {[%emt 0:07:57]} Nc6 {[%emt 0:04:32]} 18. Bf4 {[%emt 0:03:39]} g6 {[%emt 0:05:08]} 19. e6 {[%emt 0:02:15]} fxe6 {[%emt 0:00:18]} 20. Nxe6 {[%emt 0:00:10]} hxg4 {[%emt 0:00:04]} 21. hxg4 {[%emt 0:09:03]} gxf5 {[%emt 0:00:19]} 22. Nxc7 {[%emt 0:00:09]} Bh6 {[%emt 0:00:09]} 23. Bxh6 {[%emt 0:00:06]} Kxc7 {[%emt 0:00:04]} 24. Nb5+ {[%emt 0:00:07]} Kb7 {[%emt 0:00:13]} 25. g5 {[%emt 0:00:14]} Ne5 {[%emt 0:15:10]} 26. Bg7 {[%emt 0:16:30]} Ng4+ {[%emt 0:00:12]} 27. Kg3 {[%emt 0:00:34]} Rg8 {[%emt 0:00:08]} 28. Nd6+ {[%emt 0:02:57]} Ka6 {[%emt 0:00:55]} 29. Rd3 {[%emt 0:02:34]} b5 {[%emt 0:04:13]} 30. Nxf5 {[%emt 0:00:58]} 1-0

[Event "RUS-chT Higher League 2021"]
[Site "Sochi"]
[Date "2021.05.09"]
[Round "8.3"]
[White "Ulybin, Mikhail"]
[Black "Drygalov, Andrey"]
[Result "1-0"]
[ECO "A06"]
[WhiteElo "2462"]
[BlackElo "2500"]
[Annotator "ChessBase"]
[PlyCount "179"]
[EventDate "2021.05.01"]
[EventType "team-tourn"]
[EventCountry "RUS"]
[SourceTitle "playchess.com"]
[Source "ChessBase"]
[SourceQuality "1"]
[TimeControl "40/5400+30:1800+30"]

1. Nf3 {[%emt 0:00:40]} d5 {[%emt 0:00:00]} 2. g3 {[%emt 0:01:13]} g6 {[%emt 0:00:51]} 3. Bg2 Bg7 {[%emt 0:00:04]} 4. d4 {[%emt 0:02:59]} Nf6 {[%emt 0:00:03]} 5. O-O {[%emt 0:01:26]} O-O {[%emt 0:00:22]} 6. Be3 {[%emt 0:03:32]} c6 {[%emt 0:02:24]} 7. Qc1 {[%emt 0:01:49]} Qb6 {[%emt 0:06:43]} 8. c4 {[%emt 0:04:57]} dxc4 {[%emt 0:13:57]} 9. Na3 {[%emt 0:06:07]} Qa6 {[%emt 0:03:13]} 10. Nxc4 {[%emt 0:15:14]} Be6 {[%emt 0:00:38]} 11. b3 {[%emt 0:02:06]} Bd5 {[%emt 0:00:46]} 12. Rd1 {[%emt 0:14:31]} Nbd7 {[%emt 0:01:35]} 13. Bf1 {[%emt 0:03:39]} Rac8 {[%emt 0:07:22]} 14. Nce5 {[%emt 0:17:14]} Qa5 {[%emt 0:10:20]} 15. Bh3 {[%emt 0:13:40]} e6 {[%emt 0:14:58]} 16. Bd2 {[%emt 0:03:14]} Qb6 {[%emt 0:04:20]} 17. Bh6 {[%emt 0:02:02]} Bxf3 {[%emt 0:06:31]} 18. Bxg7 {[%emt 0:02:10]} Kxg7 {[%emt 0:00:28]} 19. Nxf3 {[%emt 0:00:28]} c5 {[%emt 0:00:57]} 20. Qb2 {[%emt 0:01:47]} Kg8 {[%emt 0:01:40]} 21. dxc5 {[%emt 0:00:48]} Rxc5 {[%emt 0:00:18]} 22. Rac1 {[%emt 0:00:49]} Rfc8 {[%emt 0:00:14]} 23. Rxc5 {[%emt 0:00:19]} Qxc5 {[%emt 0:00:06]} 24. Nd4 {[%emt 0:00:35]} Ne4 {[%emt 0:12:21]} 25. Bg2 {[%emt 0:00:38]} Ndf6 {[%emt 0:03:02]} 26. e3 {[%emt 0:00:23]} e5 {[%emt 0:01:19]} 27. Bxe4 {[%emt 0:00:33]} Nxe4 {[%emt 0:01:00]} 28. Nf3 {[%emt 0:00:17]} f6 {[%emt 0:03:33]} 29. Ne1 {[%emt 0:00:15]} Qc6 {[%emt 0:01:28]} 30. h4 {[%emt 0:00:42]} Nc3 {[%emt 0:02:40]} 31. Rd3 {[%emt 0:00:24]} Kg7 {[%emt 0:01:13]} 32. Qa3 {[%emt 0:00:50]} Ne2+ {[%emt 0:00:03]} 33. Kh2 {[%emt 0:00:31]} Rc7 {[%emt 0:00:28]} 34. Rd8 {[%emt 0:00:24]} Rf7 {[%emt 0:00:21]} 35. Rd2 {[%emt 0:00:37]} Nc3 {[%emt 0:00:50]} 36. Qxa7 {[%emt 0:00:25]} Ne4 {[%emt 0:01:01]} 37. Rc2 {[%emt 0:00:29]} Qb5 {[%emt 0:00:04]} 38. Qa4 {[%emt 0:00:33]} Qxa4 {[%emt 0:00:24]} 39. bxa4 {[%emt 0:00:04]} Rd7 {[%emt 0:00:58]} 40. Kg2 {[%emt 0:00:00]} b6 {[%emt 0:00:00]} 41. Rc4 {[%emt 0:20:49]} Nd6 {[%emt 0:05:05]} 42. Rb4 {[%emt 0:02:00]} Nc8 {[%emt 0:00:44]} 43. Nf3 {[%emt 0:03:32]} Kf7 {[%emt 0:00:46]} 44. g4 {[%emt 0:01:53]} Rc7 {[%emt 0:02:06]} 45. g5 {[%emt 0:02:04]} Rc2 {[%emt 0:00:59]} 46. a3 {[%emt 0:01:54]} Rc3 {[%emt 0:11:12]} 47. gxf6 {[%emt 0:00:52]} Kxf6 {[%emt 0:00:04]} 48. Ng5 {[%emt 0:00:32]} Rc7 {[%emt 0:00:03]} 49. Kf3 {[%emt 0:00:53]} h6 {[%emt 0:00:18]} 50. Ne4+ {[%emt 0:00:14]} Ke6 {[%emt 0:00:44]} 51. Ke2 {[%emt 0:01:06]} Rc1 {[%emt 0:00:36]} 52. Kd3 {[%emt 0:00:54]} Ra1 {[%emt 0:00:41]} 53. Nc3 {[%emt 0:00:33]} Rf1 {[%emt 0:02:05]} 54. Ke2 {[%emt 0:00:36]} Rc1 {[%emt 0:00:56]} 55. Kd2 {[%emt 0:00:29]} Rf1 {[%emt 0:00:27]} 56. Nd1 {[%emt 0:00:33]} Rg1 {[%emt 0:00:08]} 57. Ke2 {[%emt 0:00:30]} Kd5 {[%emt 0:03:32]} 58. Nb2 {[%emt 0:00:31]} g5 {[%emt 0:04:04]} 59. hxg5 {[%emt 0:00:27]} hxg5 {[%emt 0:00:35]} 60. e4+ {[%emt 0:00:23]} Kc6 {[%emt 0:02:31]} 61. Nc4 {[%emt 0:00:15]} Ra1 {[%emt 0:00:19]} 62. Nxe5+ {[%emt 0:00:28]} Kd6 {[%emt 0:00:08]} 63. Nf7+ {[%emt 0:00:52]} Kc5 {[%emt 0:00:04]} 64. Rb3 {[%emt 0:00:38]} Kc4 {[%emt 0:00:19]} 65. Rd3 {[%emt 0:00:25]} Re1+ {[%emt 0:03:17]} 66. Kxe1 {[%emt 0:00:07]} Kxd3 {[%emt 0:00:02]} 67. Nxg5 {[%emt 0:00:20]} Ne7 {[%emt 0:01:00]} 68. f4 {[%emt 0:00:49]} Ke3 {[%emt 0:00:13]} 69. f5 {[%emt 0:00:15]} Kf4 {[%emt 0:00:11]} 70. f6 {[%emt 0:00:30]} Ng6 {[%emt 0:00:05]} 71. Nh7 {[%emt 0:00:31]} Ne5 {[%emt 0:02:55]} 72. Kd2 {[%emt 0:00:25]} Nf7 {[%emt 0:00:23]} 73. Kd3 {[%emt 0:00:38]} Ke5 {[%emt 0:00:04]} 74. Kc4 {[%emt 0:00:48]} Nd6+ {[%emt 0:00:02]} 75. Kb4 {[%emt 0:00:32]} Ke6 {[%emt 0:00:13]} 76. a5 {[%emt 0:00:34]} bxa5+ {[%emt 0:00:05]} 77. Kxa5 {[%emt 0:00:11]} Nxe4 {[%emt 0:00:05]} 78. Kb4 {[%emt 0:00:47]} Kf7 {[%emt 0:00:19]} 79. a4 {[%emt 0:00:21]} Kg6 {[%emt 0:00:13]} 80. a5 {[%emt 0:00:29]} Nd6 {[%emt 0:00:19]} 81. a6 {[%emt 0:00:27]} Nc8 {[%emt 0:00:04]} 82. Kc5 {[%emt 0:00:53]} Kxh7 {[%emt 0:00:25]} 83. Kc6 {[%emt 0:00:11]} Kg6 {[%emt 0:01:58]} 84. Kd7 {[%emt 0:00:20]} Na7 {[%emt 0:02:10]} 85. Ke6 {[%emt 0:00:37]} Kh7 {[%emt 0:00:51]} 86. f7 {[%emt 0:00:36]} Kg7 {[%emt 0:00:08]} 87. Ke7 {[%emt 0:00:12]} Nc8+ {[%emt 0:00:17]} 88. Kd8 {[%emt 0:00:30]} Nd6 {[%emt 0:01:05]} 89. a7 {[%emt 0:00:16]} Nxf7+ {[%emt 0:00:09]} 90. Ke7 {[%emt 0:00:20]} 1-0

[Event "RUS-chT Higher League 2021"]
[Site "Sochi"]
[Date "2021.05.09"]
[Round "8.4"]
[White "Gutenev, Alexander"]
[Black "Garifullina, Leya"]
[Result "1/2-1/2"]
[ECO "B53"]
[WhiteElo "2431"]
[BlackElo "2386"]
[Annotator "NA"]
[PlyCount "49"]
[EventDate "2021.05.01"]
[EventType "team-tourn"]
[EventCountry "RUS"]
[SourceTitle "playchess.com"]
[Source "ChessBase"]
[SourceQuality "1"]
[TimeControl "40/5400+30:1800+30"]

1. e4 {[%emt 0:00:00]} c5 {[%emt 0:00:00]} 2. Nf3 {[%emt 0:00:00]} d6 {[%emt 0:00:00]} 3. d4 {[%emt 0:00:28]} cxd4 {[%emt 0:00:00]} 4. Qxd4 {[%emt 0:00:15]} Nc6 {[%emt 0:01:48]} 5. Qe3 {[%emt 0:00:28]} Nf6 {[%emt 0:04:12]} 6. Be2 {[%emt 0:00:17]} g6 {[%emt 0:04:19]} 7. O-O {[%emt 0:00:41]} Bg7 {[%emt 0:00:11]} 8. Rd1 {[%emt 0:00:22]} O-O {[%emt 0:08:59]} 9. Nc3 {[%emt 0:00:12]} a6 {[%emt 0:04:41]} 10. Nd5 {[%emt 0:01:25]} Nd7 {[%emt 0:01:18]} 11. c3 {[%emt 0:01:44]} e6 {[%emt 0:11:30]} 12. Nf4 {[%emt 0:01:46]} Qc7 {[%emt 0:01:58]} 13. Nd3 {[%emt 0:17:17]} b5 {[%emt 0:05:35]} 14. Qf4 {[%emt 0:12:13]} e5 {[%emt 0:08:41]} 15. Qh4 {[%emt 0:09:02]} f6 {[%emt 0:15:38]} 16. Bh6 {[%emt 0:07:11]} Ne7 {[%emt 0:02:05]} 17. Bxg7 {[%emt 0:06:21]} Kxg7 {[%emt 0:00:05]} 18. Nd2 {[%emt 0:03:37]} Bb7 {[%emt 0:04:32]} 19. Rac1 {[%emt 0:04:10]} d5 {[%emt 0:02:53]} 20. exd5 {[%emt 0:00:38]} Bxd5 {[%emt 0:00:16]} 21. c4 {[%emt 0:05:13]} bxc4 {[%emt 0:00:21]} 22. Nb4 {[%emt 0:00:04]} Nb6 {[%emt 0:04:34]} 23. Nxd5 {[%emt 0:04:23]} Nbxd5 {[%emt 0:00:51]} 24. Bf3 {[%emt 0:02:57]} c3 {[%emt 0:02:07]} 25. bxc3 {[%emt 0:01:30]} 1/2-1/2

[Event "RUS-chT Higher League 2021"]
[Site "Sochi"]
[Date "2021.05.09"]
[Round "8.5"]
[White "Belyakov, Bogdan"]
[Black "Kezin, Roman"]
[Result "1/2-1/2"]
[ECO "B30"]
[WhiteElo "2459"]
[BlackElo "2472"]
[Annotator "ChessBase"]
[PlyCount "54"]
[EventDate "2021.05.01"]
[EventType "team-tourn"]
[EventCountry "RUS"]
[SourceTitle "playchess.com"]
[Source "ChessBase"]
[SourceQuality "1"]
[TimeControl "40/5400+30:1800+30"]

1. e4 {[%emt 0:00:00]} c5 {[%emt 0:00:00]} 2. Nf3 {[%emt 0:00:00]} Nc6 {[%emt 0:00:07]} 3. c3 {[%emt 0:02:38]} Nf6 {[%emt 0:01:48]} 4. e5 {[%emt 0:02:27]} Nd5 {[%emt 0:00:07]} 5. d4 {[%emt 0:02:40]} cxd4 {[%emt 0:00:14]} 6. cxd4 {[%emt 0:00:04]} d6 {[%emt 0:00:08]} 7. Bc4 {[%emt 0:00:06]} Nb6 {[%emt 0:00:06]} 8. Bb5 {[%emt 0:00:18]} Bd7 {[%emt 0:00:09]} 9. Nc3 {[%emt 0:00:12]} dxe5 {[%emt 0:00:08]} 10. dxe5 {[%emt 0:01:23]} g6 {[%emt 0:00:08]} 11. O-O {[%emt 0:02:45]} Bg7 {[%emt 0:00:29]} 12. Qe2 {[%emt 0:00:23]} O-O {[%emt 0:00:09]} 13. Rd1 {[%emt 0:00:15]} Qc7 {[%emt 0:03:44]} 14. a4 {[%emt 0:01:17]} Nxe5 {[%emt 0:05:30]} 15. Bxd7 {[%emt 0:07:40]} Nxf3+ {[%emt 0:00:55]} 16. Qxf3 {[%emt 0:00:14]} Nxd7 {[%emt 0:00:04]} 17. Nd5 {[%emt 0:00:23]} Qe5 {[%emt 0:00:23]} 18. Bf4 {[%emt 0:02:34]} Qxb2 {[%emt 0:00:27]} 19. Rab1 {[%emt 0:00:08]} Qa2 {[%emt 0:00:04]} 20. Rxb7 {[%emt 0:03:05]} Nc5 {[%emt 0:00:15]} 21. Rxe7 {[%emt 0:01:13]} Ne6 {[%emt 0:06:35]} 22. Be3 {[%emt 0:03:17]} Qxa4 {[%emt 0:02:21]} 23. h3 {[%emt 0:18:49]} Kh8 {[%emt 0:45:25]} 24. Nf6 {[%emt 0:18:10]} Qh4 {[%emt 0:04:21]} 25. Nd5 {[%emt 0:03:27]} Qa4 {[%emt 0:05:53]} 26. Nf6 {[%emt 0:04:38]} Qh4 {[%emt 0:00:11]} 27. Nd5 {[%emt 0:00:05]} Qa4 {[%emt 0:00:07]} 1/2-1/2

[Event "RUS-chT Higher League 2021"]
[Site "Sochi"]
[Date "2021.05.09"]
[Round "8.6"]
[White "Obgolts, Erik"]
[Black "Derjabin, Ilja"]
[Result "1-0"]
[ECO "B90"]
[WhiteElo "2414"]
[BlackElo "2333"]
[Annotator "NA"]
[PlyCount "83"]
[EventDate "2021.05.01"]
[EventType "team-tourn"]
[EventCountry "RUS"]
[SourceTitle "playchess.com"]
[Source "ChessBase"]
[SourceQuality "1"]
[TimeControl "40/5400+30:1800+30"]

1. e4 {[%emt 0:00:00]} c5 {[%emt 0:00:30]} 2. Nf3 {[%emt 0:00:00]} d6 {[%emt 0:00:18]} 3. d4 {[%emt 0:00:00]} cxd4 {[%emt 0:00:08]} 4. Nxd4 {[%emt 0:00:00]} Nf6 {[%emt 0:00:11]} 5. Nc3 {[%emt 0:00:00]} a6 {[%emt 0:00:08]} 6. Be3 {[%emt 0:00:00]} e5 {[%emt 0:01:21]} 7. Nf3 {[%emt 0:00:01]} Be7 {[%emt 0:02:37]} 8. Bc4 {[%emt 0:01:58]} O-O {[%emt 0:01:05]} 9. O-O {[%emt 0:00:07]} Nc6 {[%emt 0:03:20]} 10. Qe2 {[%emt 0:00:17]} Bg4 {[%emt 0:16:59]} 11. Nd5 {[%emt 0:17:11]} Nxd5 {[%emt 0:08:42]} 12. Bxd5 {[%emt 0:00:08]} Nd4 {[%emt 0:05:40]} 13. Bxd4 {[%emt 0:00:11]} exd4 {[%emt 0:00:06]} 14. Bxb7 {[%emt 0:16:20]} Rb8 {[%emt 0:00:32]} 15. Bxa6 {[%emt 0:00:10]} Rxb2 {[%emt 0:00:10]} 16. Bd3 {[%emt 0:05:08]} Qa5 {[%emt 0:04:49]} 17. a4 {[%emt 0:06:01]} Bf6 {[%emt 0:05:19]} 18. h3 {[%emt 0:01:32]} Be6 {[%emt 0:08:13]} 19. Qd2 {[%emt 0:16:42]} Qc5 {[%emt 0:28:11]} 20. Rfb1 {[%emt 0:04:17]} Rxb1+ {[%emt 0:00:27]} 21. Rxb1 {[%emt 0:00:02]} Ra8 {[%emt 0:00:21]} 22. a5 {[%emt 0:05:56]} h6 {[%emt 0:00:24]} 23. a6 {[%emt 0:01:18]} Bc4 {[%emt 0:00:45]} 24. Ra1 {[%emt 0:01:24]} Ra7 {[%emt 0:04:58]} 25. Bxc4 {[%emt 0:01:34]} Qxc4 {[%emt 0:00:09]} 26. Qd3 {[%emt 0:00:06]} Qxd3 {[%emt 0:01:15]} 27. cxd3 {[%emt 0:00:04]} Kf8 {[%emt 0:00:04]} 28. Nd2 {[%emt 0:08:30]} Ke7 {[%emt 0:00:24]} 29. Nc4 {[%emt 0:00:08]} Kd7 {[%emt 0:00:25]} 30. f4 {[%emt 0:00:52]} Kc6 {[%emt 0:00:46]} 31. Kf2 {[%emt 0:01:16]} Be7 {[%emt 0:00:15]} 32. Kf3 {[%emt 0:00:45]} Kb5 {[%emt 0:01:33]} 33. Rb1+ {[%emt 0:00:24]} Kc6 {[%emt 0:00:18]} 34. Na5+ {[%emt 0:01:16]} Kc7 {[%emt 0:00:19]} 35. Rc1+ {[%emt 0:01:33]} Kd7 {[%emt 0:01:04]} 36. Nc6 {[%emt 0:00:27]} Ra8 {[%emt 0:00:41]} 37. Nxe7 {[%emt 0:01:26]} Kxe7 {[%emt 0:00:11]} 38. Ra1 {[%emt 0:00:02]} Ra7 {[%emt 0:00:52]} 39. e5 {[%emt 0:00:06]} d5 {[%emt 0:00:12]} 40. f5 {[%emt 0:00:00]} f6 {[%emt 0:00:00]} 41. e6 {[%emt 0:00:55]} Kd6 {[%emt 0:00:34]} 42. Kg4 {[%emt 0:00:24]} 1-0